{"text_format":"2","workbook":"xlsx","n_sheets":10,"sheets":["Info","Főösszesítő","Munkanem összesítő","2.Bontás, építőanyagok újraha","5.Építőgépek, szerszámok","12.Felvonulási létesítmények","19.Költségtérítések","31.Helyszíni beton és vasbeton","42.Hideg- és melegburkolatok k","71.Elektromos energiaellátás,"],"not_rendered":{"charts":0,"images":0,"macros":0,"external_links":0,"defined_names":0,"comments":0,"pivot_tables":0},"unopened":[],"bounds":{"document_bytes":16777216,"sheet_cells":100000,"run_cost":"one","rows_first":2000,"rows_last":500,"rows_between":2000,"halvings":0,"cell_chars":16384,"cell_head_chars":4096},"cells_cut":0,"cells_raw":0,"read":"whole","date_system":"1900"}

{"sheet":"Info","index":0,"n_rows":28,"n_cols":2,"rows_kept":28,"cut":false,"hidden":false,"merged":[[0,0,0,1],[17,0,17,1],[20,0,20,1],[25,0,25,1]]}
["Exportált költségvetés adatai"]
["Költségvetés neve:","410 Heliport"]
["Leírás:","Helikopter leszálló fűtés készítése, kiegészítő munkálatokkal"]
["Költségvetés jellege:","Felújítás"]
["Tételek száma:","12 db"]
["Munkanemek száma:","7 db"]
["Fejezetek száma:","Nem fejezetes"]
["Építmény tulajdonsága:","Egyéb építmény"]
[]
[]
[]
[]
["Bruttó végösszeg:",0]
[]
["Készítette:"]
[]
["Figyelem!"]
["Ez az információs ablak az exportálással létrejött költségvetés alapadatait tartalmazza!"]
[]
[]
["A további munkafüzet-lapokon történő változtatások nincsenek hatással az oldal adataira!\nTovábbá az ezen az oldalon kiadott módosítások nem változtatják a költségvetés adatait!"]
[]
[]
[]
[]
["Készült a TERC-ETALON Online Építőipari Költségvetés-készítő és Kiíró Programrendszerrel"]
[]
["http://www.etalon.terc.hu"]

{"sheet":"Főösszesítő","index":1,"n_rows":8,"n_cols":4,"rows_kept":8,"cut":false,"hidden":false,"merged":[[0,0,0,3],[2,0,2,3],[5,2,5,3],[6,2,6,3],[7,2,7,3]]}
[]
[]
["Költségvetés főösszesítő"]
["Megnevezés",null,"Anyagköltség","Díjköltség"]
["1 Építmény közvetlen költségei",null,{"$f":"'Munkanem összesítő'!C9","v":0},{"$f":"'Munkanem összesítő'!D9","v":0}]
["2.1 ÁFA vetítési alap",null,{"$f":"ROUND(C5+D5,0)","v":0}]
["2.2 ÁFA",0,{"$f":"ROUND(C6*B7,0)","v":0}]
["3 A munka ára (HUF)",null,{"$f":"ROUND(C7+C6,0)","v":0}]

{"sheet":"Munkanem összesítő","index":2,"n_rows":9,"n_cols":4,"rows_kept":9,"cut":false,"hidden":false,"merged":[]}
["Ssz.","Megnevezés","Anyagköltség","Díjköltség"]
["2","Bontás, építőanyagok újrahasznosítása",{"$f":"'2.Bontás, építőanyagok újraha'!H3","v":0},{"$f":"'2.Bontás, építőanyagok újraha'!I3","v":0}]
["5","Építőgépek, szerszámok",{"$f":"'5.Építőgépek, szerszámok'!H4","v":0},{"$f":"'5.Építőgépek, szerszámok'!I4","v":0}]
["12","Felvonulási létesítmények",{"$f":"'12.Felvonulási létesítmények'!H3","v":0},{"$f":"'12.Felvonulási létesítmények'!I3","v":0}]
["19","Költségtérítések",{"$f":"'19.Költségtérítések'!H4","v":0},{"$f":"'19.Költségtérítések'!I4","v":0}]
["31","Helyszíni beton és vasbeton munkák",{"$f":"'31.Helyszíni beton és vasbeton'!H3","v":0},{"$f":"'31.Helyszíni beton és vasbeton'!I3","v":0}]
["42","Hideg- és melegburkolatok készítése, aljzat előkészítés",{"$f":"'42.Hideg- és melegburkolatok k'!H4","v":0},{"$f":"'42.Hideg- és melegburkolatok k'!I4","v":0}]
["71","Elektromos energiaellátás, villanyszerelés",{"$f":"'71.Elektromos energiaellátás,'!H5","v":0},{"$f":"'71.Elektromos energiaellátás,'!I5","v":0}]
[null,"Összesen (HUF)",{"$f":"ROUND(SUM(C2:C8),0)","v":0},{"$f":"ROUND(SUM(D2:D8),0)","v":0}]

{"sheet":"2.Bontás, építőanyagok újraha","index":3,"n_rows":3,"n_cols":9,"rows_kept":3,"cut":false,"hidden":false,"merged":[]}
["Ssz.","Tételszám","Tétel szövege","Menny.","Egység","Anyag egységár","Díj egységre","Anyag összesen","Díj összesen"]
[1,"21-011-11.3","Építési törmelék konténeres elszállítása, lerakása, lerakóhelyi díjjal, 5,0 m³-es konténerbe",1,"db",0,0,{"$f":"ROUND(F2*D2,0)","v":0},{"$f":"ROUND(G2*D2,0)","v":0}]
[null,null,"Munkanem összesen (HUF)",{"$nulls":4},{"$f":"ROUND(SUM(H2:H2),0)","v":0},{"$f":"ROUND(SUM(I2:I2),0)","v":0}]

{"sheet":"5.Építőgépek, szerszámok","index":4,"n_rows":4,"n_cols":9,"rows_kept":4,"cut":false,"hidden":false,"merged":[]}
["Ssz.","Tételszám","Tétel szövege","Menny.","Egység","Anyag egységár","Díj egységre","Anyag összesen","Díj összesen"]
[1,"05-006-5.2.2.4.2","Betonbedolgozás gépei, betonsimítók (gépkezelő nélkül), simítótárcsa, 2,2 kW-os, 100 cm-es",5,"óra",0,0,{"$f":"ROUND(F2*D2,0)","v":0},{"$f":"ROUND(G2*D2,0)","v":0}]
[2,"05-008-2.2.2.3","Autódaruval végzett munka, autódaru teleszkópos gémmel, 420 kW-ig, 200 t teherbírásig, 150 kW, teherbírás: 25t",5,"óra",0,0,{"$f":"ROUND(F3*D3,0)","v":0},{"$f":"ROUND(G3*D3,0)","v":0}]
[null,null,"Munkanem összesen (HUF)",{"$nulls":4},{"$f":"ROUND(SUM(H2:H3),0)","v":0},{"$f":"ROUND(SUM(I2:I3),0)","v":0}]

{"sheet":"12.Felvonulási létesítmények","index":5,"n_rows":3,"n_cols":9,"rows_kept":3,"cut":false,"hidden":false,"merged":[]}
["Ssz.","Tételszám","Tétel szövege","Menny.","Egység","Anyag egységár","Díj egységre","Anyag összesen","Díj összesen"]
[1,"12-006-3.1","Védődeszkázat készítése, függőleges",60,"m2",0,0,{"$f":"ROUND(F2*D2,0)","v":0},{"$f":"ROUND(G2*D2,0)","v":0}]
[null,null,"Munkanem összesen (HUF)",null,null,0,0,{"$f":"ROUND(SUM(H2:H2),0)","v":0},{"$f":"ROUND(SUM(I2:I2),0)","v":0}]

{"sheet":"19.Költségtérítések","index":6,"n_rows":4,"n_cols":9,"rows_kept":4,"cut":false,"hidden":false,"merged":[]}
["Ssz.","Tételszám","Tétel szövege","Menny.","Egység","Anyag egységár","Díj egységre","Anyag összesen","Díj összesen"]
[1,"19-071-11.11","Ellenőrző próbák, hatásos teljesítmény, ellenállás és hőleadás mérés",4,"db",0,0,{"$f":"ROUND(F2*D2,0)","v":0},{"$f":"ROUND(G2*D2,0)","v":0}]
[2,"19-010-1.11.2.1","Általános teendők megvalósulás szakaszában, időarányos gépköltség bérleti díja, órában, Beton felületmaró gép, fűtőszál bemarásához, elvégzett munkával együtt költségelve!",40,"óra",0,0,{"$f":"ROUND(F3*D3,0)","v":0},{"$f":"ROUND(G3*D3,0)","v":0}]
[null,null,"Munkanem összesen (HUF)",{"$nulls":4},{"$f":"ROUND(SUM(H2:H3),0)","v":0},{"$f":"ROUND(SUM(I2:I3),0)","v":0}]

{"sheet":"31.Helyszíni beton és vasbeton","index":7,"n_rows":3,"n_cols":9,"rows_kept":3,"cut":false,"hidden":false,"merged":[]}
["Ssz.","Tételszám","Tétel szövege","Menny.","Egység","Anyag egységár","Díj egységre","Anyag összesen","Díj összesen"]
[1,"31-090-4.3.2-0314397","Beton és vasbeton szerkezetek felületi javítása, betonjavító készhabarccsal vagy szárazbetonnal, üvegszál erősítéssel, 10 mm vastagságban, kézi felület-előkészítéssel, SIKA-Pach betonjavító habarcs",380,"m2",0,0,{"$f":"ROUND(F2*D2,0)","v":0},{"$f":"ROUND(G2*D2,0)","v":0}]
[null,null,"Munkanem összesen (HUF)",{"$nulls":4},{"$f":"ROUND(SUM(H2:H2),0)","v":0},{"$f":"ROUND(SUM(I2:I2),0)","v":0}]

{"sheet":"42.Hideg- és melegburkolatok k","index":8,"n_rows":4,"n_cols":9,"rows_kept":4,"cut":false,"hidden":false,"merged":[]}
["Ssz.","Tételszám","Tétel szövege","Menny.","Egység","Anyag egységár","Díj egységre","Anyag összesen","Díj összesen"]
[1,"42-011-2.2.1.1-0220510","Padlóburkolat hordozószerkezetének felületelőkészítése kültérben, hőterhelt felületen beton alapfelületen felületelőkészítő alapozó és tapadóhíd felhordása egy rétegben, ARDEX EP 2000 multifunkcionális epoxigyanta",380,"m2",0,0,{"$f":"ROUND(F2*D2,0)","v":0},{"$f":"ROUND(G2*D2,0)","v":0}]
[2,"42-050-1.4.1","Aljzat kiegyenlítő, felület előkészítő technológia, felület előkészítés, padlócsiszolás műgyanta burkolat készítése előtt, HTC Superprep™ technológiával",380,"m2",0,0,{"$f":"ROUND(F3*D3,0)","v":0},{"$f":"ROUND(G3*D3,0)","v":0}]
[null,null,"Munkanem összesen (HUF)",{"$nulls":4},{"$f":"ROUND(SUM(H2:H3),0)","v":0},{"$f":"ROUND(SUM(I2:I3),0)","v":0}]

{"sheet":"71.Elektromos energiaellátás,","index":9,"n_rows":5,"n_cols":9,"rows_kept":5,"cut":false,"hidden":false,"merged":[]}
["Ssz.","Tételszám","Tétel szövege","Menny.","Egység","Anyag egységár","Díj egységre","Anyag összesen","Díj összesen"]
[1,"71-021-2.2.1.4.7-0321925","Kültéri fagy-, hó- és jégmentesítés, elektromos felületfűtéssel, (szabályzás és védőcsövezés kiépítését külön tételben kell kiírni), tetőjég- és hóolvasztó rendszerekhez, talaj (rámpák, parkolók, járdák, hidak, lépcsők stb.) fagyvédelmére, fűtőkábellel fix méretben, gyári hidegvéggel, 400V-os, 3901-5250W és 130,1-175,0 m/db  között, 4801-4950W és 160,1-165,0 m/db, Nordinova Energy COMFORT HEAT CTACV-30, 163m, 4890W, 400V kábel",27,"db",0,0,{"$f":"ROUND(F2*D2,0)","v":0},{"$f":"ROUND(G2*D2,0)","v":0}]
[2,"71-021-21.1.2-0321847","Kültéri felületfűtési rendszerek vezérléséhez talaj (beton, térkő, aszfalt, kerámia, föld) felületekhez, érzékelők elhelyezése, Nordinova Energy COMFORT HEAT Szenzor talajra ETOG-55 (ETO2-4550 és ETR2-150 termosztátokhoz), 10 méter hosszú, egyszerre méri a talajhőmérsékletet, és a nedvességet, Csz: 19122035",1,"db",0,0,{"$f":"ROUND(F3*D3,0)","v":0},{"$f":"ROUND(G3*D3,0)","v":0}]
[3,"71-021-21.1.2-0321849","Kültéri felületfűtési rendszerek vezérléséhez talaj (beton, térkő, aszfalt, kerámia, föld) felületekhez, érzékelők elhelyezése, Nordinova Energy COMFORT HEAT Szenzor kültéri ETF-744/99 (ETO2-4550 és ETR2-1550 termosztátokhoz)",1,"db",0,0,{"$f":"ROUND(F4*D4,0)","v":0},{"$f":"ROUND(G4*D4,0)","v":0}]
[null,null,"Munkanem összesen (HUF)",{"$nulls":4},{"$f":"ROUND(SUM(H2:H4),0)","v":0},{"$f":"ROUND(SUM(I2:I4),0)","v":0}]